bitfinex/quotes_ETHUSD_20251012
["timestamp","ask_amount","ask_price","bid_price","bid_amount"]
[1760285684996,2.8853326,4096.5,4095.6,2.44159925]
[1760285685591,0.1216,4096.1,4095.6,2.44159925]
[1760285685788,0.4442,4096.0,4095.7,2.44157152]
[1760285686479,0.4442,4095.9,4095.6,2.44163202]
[1760285686675,0.2126,4095.7,4094.0,0.6336]
[1760285687003,8.128552,4095.5,4092.9,0.4682]
[1760285687211,10.238819,4095.2,4092.3,2.44361361]
[1760285687504,1.2205496,4095.7,4093.4,2.44295326]
[1760285687505,2.44251534,4094.2,4093.4,2.44295326]
[1760285687702,2.44251534,4094.2,4091.9,0.977]
[1760285687703,6.312445,4094.0,4091.9,0.977]
[1760285687916,15.411003,4093.8,4092.3,2.44361361]
[1760285688115,3.866469,4093.8,4093.0,2.44318771]
[1760285688321,2.44285527,4093.6,4092.8,2.44326685]
[1760285688611,0.4419,4093.5,4092.8,2.44326685]
[1760285688810,0.4419,4093.5,4092.7,2.44336798]
[1760285689027,0.4419,4093.5,4092.9,2.44324056]
[1760285689221,0.4419,4093.5,4093.0,2.44319293]
[1760285689520,0.4419,4093.4,4093.0,2.44319293]
[1760285689699,0.4419,4093.3,4093.0,2.44319293]
[1760285690017,0.4419,4093.8,4092.0,2.74847511]
[1760285690220,0.4419,4093.8,4093.0,2.44316596]
[1760285690521,0.4419,4093.8,4092.1,0.37254751]
[1760285690720,0.73486994,4096.7,4092.1,0.37254751]
[1760285690721,0.4419,4094.5,4092.5,0.6336]
[1760285690908,0.4419,4094.5,4092.5,2.44349419]
[1760285691241,0.4419,4095.3,4092.6,0.4389]
[1760285691555,0.4419,4095.3,4093.0,2.44319569]
[1760285691724,0.4419,4095.3,4093.4,2.44292112]
[1760285691890,0.4419,4095.3,4093.1,0.24431957]
[1760285691891,6.182158,4095.1,4093.3,0.6336]
[1760285692091,2.44217489,4094.8,4093.8,2.44268188]
[1760285692420,2.88408186,4094.7,4093.9,2.44264872]
[1760285692595,2.88409301,4094.7,4093.9,2.44264365]
[1760285692792,2.88409301,4094.7,4092.1,2.67498031]
[1760285692793,3.417394,4094.6,4092.1,2.67498031]
[1760285693000,2.4423755,4094.4,4093.3,2.44298078]
[1760285693201,2.44254173,4094.1,4093.3,2.44298078]
[1760285693423,0.4419,4094.0,4093.3,2.44298078]
[1760285693731,0.4419,4094.0,4093.4,2.4429454]
[1760285694538,0.4419,4094.0,4093.0,2.44313744]
[1760285694742,2.8845063,4094.0,4093.2,2.44306322]
[1760285695239,2.8845063,4094.0,4092.0,0.3047]
[1760285695240,5.01979,4093.8,4092.0,0.3047]
[1760285695445,2.44343154,4092.7,4092.0,0.3047]
[1760285695654,4.80467792,4093.7,4092.0,0.3047]
[1760285695655,2.07217,4093.6,4092.0,0.3047]
[1760285695941,14.775366,4093.1,4092.0,0.3047]
[1760285696154,20.572056,4092.9,4092.0,0.3047]
[1760285696453,2.44369054,4092.2,4092.0,0.3047]
[1760285696627,2.44373304,4092.1,4092.0,0.3047]
[1760285696829,2.88563304,4092.1,4092.0,0.3047]
[1760285697352,0.4419,4092.1,4092.0,0.3047]
[1760285697811,0.1216,4092.4,4092.0,0.3047]
[1760285698017,2.44367915,4092.2,4092.0,0.3047]
[1760285698234,0.4419,4092.1,4092.0,0.3047]
[1760285699534,0.4419,4092.5,4092.0,0.3047]
[1760285699737,2.88545521,4092.4,4092.0,0.3047]
[1760285700042,0.4419,4092.3,4092.0,0.3047]
[1760285700255,2.44310018,4093.2,4092.0,0.3047]
[1760285700425,0.4419,4093.1,4092.0,0.3047]
[1760285700934,0.4419,4093.1,4092.1,2.44367823]
[1760285701153,2.88511882,4093.0,4092.0,0.3047]
[1760285701361,2.44326099,4092.9,4092.0,0.3047]
[1760285701648,0.4419,4093.0,4092.0,0.3047]
[1760285701841,2.44343922,4092.6,4092.0,0.3047]
[1760285702036,2.88514344,4093.0,4092.1,2.44373304]
[1760285702349,0.4419,4093.0,4092.0,0.3047]
[1760285702652,0.4419,4093.7,4092.0,0.3047]
[1760285702814,2.44307766,4093.2,4092.4,2.44353632]
[1760285703017,2.88479458,4093.6,4092.0,0.3047]
[1760285703018,0.4419,4093.4,4092.0,0.3047]
[1760285703254,0.4419,4093.4,4092.9,2.44322259]
[1760285703445,0.4419,4093.3,4092.0,0.3047]
[1760285703755,0.4419,4094.6,4092.7,0.6336]
[1760285703918,0.4419,4094.6,4093.7,2.44271826]
[1760285703919,2.88414809,4094.6,4093.7,2.44271826]
[1760285704119,2.44235447,4094.5,4093.6,2.44279527]
[1760285704434,0.4419,4094.6,4092.9,0.6336]
[1760285704825,0.4419,4094.6,4093.0,0.35158306]
[1760285705027,0.4419,4095.4,4093.3,0.6336]
[1760285705243,0.001,4096.4,4093.3,0.6336]
[1760285705244,5.840712,4095.2,4093.3,0.6336]
[1760285705447,0.4419,4095.3,4093.3,0.6336]
[1760285705448,0.007,4093.5,4093.4,3.07655695]
[1760285705829,0.007,4093.5,4093.4,3.51545695]
[1760285706829,0.4419,4095.1,4093.6,0.6336]
[1760285707166,0.2126,4095.7,4093.5,2.44289727]
[1760285707167,2.88355814,4095.6,4094.3,2.44239428]
[1760285707362,2.44194616,4095.1,4094.3,2.44239428]
[1760285707571,2.44194616,4095.1,4093.5,2.44285716]
[1760285707572,2.44207956,4094.9,4093.5,0.6336]
[1760285707721,0.4419,4095.1,4093.5,0.98515017]
[1760285707922,0.4419,4095.1,4093.7,0.6336]
[1760285708160,0.4419,4095.1,4094.4,2.44235307]
[1760285708450,2.88393697,4095.0,4093.0,2.44319569]
[1760285708637,0.4419,4095.0,4094.5,2.4422884]
[1760285708837,2.65424168,4095.7,4093.5,0.6336]
[1760285708838,0.4419,4094.9,4093.5,0.6336]
[1760285709018,0.2126,4095.7,4092.0,0.3047]
[1760285709019,20.24006196,4094.4,4092.0,0.3047]
[1760285709220,6.838407,4094.0,4093.4,0.1216]
[1760285709422,0.1216,4093.9,4093.2,0.1216]
[1760285709619,4.36280327,4093.7,4092.0,0.3047]
[1760285709822,2.44355598,4092.4,4092.0,0.3047]
[1760285710073,1.92,4093.3,4092.0,0.3047]
[1760285710074,0.4419,4092.8,4092.0,0.3047]
[1760285710382,2.44344063,4092.6,4092.0,0.3047]
[1760285710584,0.4419,4092.8,4092.0,0.3047]
[1760285710753,2.44342339,4092.7,4092.0,0.3047]
[1760285710953,2.44344093,4092.6,4092.0,0.3047]
[1760285711281,0.4419,4092.8,4092.0,0.3047]
[1760285711450,2.0681962,4092.7,4092.0,0.3047]
[1760285711655,2.44353467,4092.5,4092.0,0.3047]
[1760285711979,2.8852292,4092.8,4092.0,0.3047]
[1760285712281,0.4419,4092.8,4092.0,0.3047]
[1760285712484,1.92,4092.7,4092.0,0.3047]
[1760285712788,2.4437203,4092.2,4092.0,0.3047]
[1760285713085,11.43225304,4092.1,4092.0,0.3047]
[1760285713381,7.08163304,4092.1,4092.0,0.3047]
[1760285713754,7.08163304,4092.1,4092.0,0.3067]
[1760285714108,7.50795004,4092.1,4092.0,0.3067]
[1760285714286,9.96791412,4092.1,4092.0,0.3067]
[1760285714860,13.84113712,4092.1,4092.0,0.3067]
[1760285715868,2.44403167,4091.6,4091.5,0.002]
[1760285716068,2.44427062,4091.2,4091.1,0.002]
[1760285716278,1.92,4091.1,4088.3,0.4389]
[1760285716556,3.21416,4089.9,4087.6,0.4389]
[1760285716883,0.5376,4089.8,4087.7,2.44636348]
[1760285717086,3.059922,4089.7,4088.2,2.44602953]
[1760285717287,2.117982,4089.7,4088.3,0.24460295]
[1760285717484,2.44527993,4089.6,4088.7,2.44574488]
[1760285717671,2.44533466,4089.5,4087.6,0.4389]
[1760285717894,2.44485543,4090.3,4087.6,0.4389]
[1760285717895,2.44485023,4090.3,4087.6,0.4389]
[1760285718100,0.541,4090.4,4088.7,2.44571255]
[1760285718101,2.44527738,4089.6,4088.7,2.44571255]
[1760285718395,2.44527738,4089.6,4087.1,2.44668675]
[1760285718396,20.24006196,4088.8,4087.1,0.4397]
[1760285718603,4.80137544,4089.1,4088.3,2.44599871]
[1760285718903,0.4358,4089.1,4088.3,2.44595297]
[1760285719106,1.92,4089.2,4085.9,0.483066]
[1760285719325,20.24006196,4088.3,4086.0,0.671]
[1760285719471,0.5574,4088.2,4087.5,2.44643503]
[1760285719672,0.48052151,4089.1,4087.8,0.1216]
[1760285719673,0.1216,4088.5,4087.8,0.1216]
[1760285720290,2.44600445,4088.3,4087.6,2.44642185]
[1760285720603,2.4461126,4088.2,4087.6,0.1216]
[1760285720818,0.1216,4088.3,4087.6,0.1216]
[1760285720984,0.1216,4088.3,4087.7,2.4463537]
[1760285721185,0.1216,4088.3,4087.6,0.1216]
[1760285721425,0.1216,4088.8,4088.1,0.1216]
[1760285721577,0.6336,4090.3,4083.2,1.92727075]
[1760285721578,0.4358,4088.5,4088.0,2.44618091]
[1760285721772,0.4358,4088.5,4088.1,2.44611062]
[1760285722015,0.4358,4088.4,4087.3,2.44655836]
[1760285722218,0.4358,4088.4,4087.7,2.44631052]
[1760285722510,0.1588,4087.8,4086.0,0.2313]
[1760285722710,20.67356196,4087.7,4085.7,2.44750833]
[1760285722910,6.451398,4087.6,4085.3,0.4397]
[1760285723096,5.49816,4087.5,4085.1,2.44792049]
[1760285723414,2.44703242,4086.6,4085.7,2.44754938]
[1760285723710,0.4335,4086.5,4084.9,2.44804034]
[1760285723912,0.4335,4086.4,4085.0,0.28877403]
[1760285724077,0.4335,4086.4,4085.7,2.44750463]
[1760285724276,0.4335,4086.4,4084.2,0.4397]
[1760285724277,0.2143,4085.8,4083.6,0.4397]
[1760285724498,0.4314,4085.7,4083.6,0.4397]
[1760285724710,0.4314,4085.7,4083.3,2.44896133]
[1760285724711,1.92,4085.6,4083.3,2.44896133]
[1760285725015,0.4314,4085.5,4083.4,20.55106809]
[1760285725174,0.4314,4085.5,4083.7,2.4487597]
[1760285725385,0.4314,4085.5,4085.2,2.447805]
[1760285725587,0.2143,4085.8,4084.1,0.4397]
[1760285725788,0.4292,4085.8,4085.6,2.44756109]
[1760285725993,0.2164,4086.1,4084.7,2.4481206]
[1760285726194,0.4292,4086.0,4085.5,2.44763343]
[1760285726517,0.4292,4085.9,4084.2,3.08205991]
[1760285726697,0.4292,4085.9,4085.1,2.44786748]
[1760285726885,0.4292,4085.9,4085.3,2.44774736]
[1760285727215,0.4292,4085.9,4083.5,4.36885728]
[1760285727216,0.4292,4085.8,4083.5,2.88857963]
[1760285727417,42.46105096,4086.0,4083.7,2.4487597]
[1760285727418,2.44768082,4085.5,4083.7,2.4487597]
[1760285727620,6.65755,4085.3,4083.6,0.31995858]
[1760285727821,4.531,4085.1,4082.2,0.4397]
[1760285727997,7.50675,4084.9,4083.6,2.44881165]
[1760285728204,0.4292,4084.8,4084.0,2.44856285]
[1760285728399,1.92,4084.7,4082.7,0.4397]
[1760285728598,1.92,4084.7,4083.6,2.44879389]
[1760285728800,2.88916408,4084.8,4084.2,2.44845109]
[1760285729003,0.4292,4084.8,4082.7,0.4397]
[1760285729323,0.4292,4084.8,4084.2,2.44840261]
[1760285729623,0.4292,4084.8,4083.1,0.6336]
[1760285729809,0.4292,4084.8,4083.0,2.44917952]
[1760285729810,0.4292,4084.8,4084.4,2.44832736]
[1760285730011,0.4292,4084.8,4083.2,2.44905956]
[1760285730012,0.4292,4084.7,4084.5,2.44827609]
[1760285730324,0.4292,4084.7,4082.2,1.92]
[1760285730325,2.4474919,4085.9,4084.7,2.44812564]
[1760285730623,2.4474919,4085.9,4083.4,0.6336]
[1760285730624,0.4292,4085.6,4085.1,2.44790938]
[1760285730827,0.4292,4085.6,4085.3,2.44778169]
[1760285731124,0.4292,4085.6,4085.0,2.44796882]
[1760285731125,0.4292,4085.5,4083.3,2.44894871]
[1760285731423,0.4292,4085.5,4082.9,20.24006196]
[1760285731424,6.01041,4085.1,4084.0,2.44856129]
[1760285731626,6.01041,4085.1,4082.6,23.12916642]
[1760285731627,5.275967,4084.4,4082.0,0.979]
[1760285731841,9.77476591,4084.2,4084.1,0.002]
[1760285732133,9.77476591,4084.2,4081.9,2.44981581]
[1760285732134,2.671,4084.1,4083.3,2.44898746]
[1760285732340,0.4255,4084.0,4083.7,0.002]
[1760285732727,0.1327,4083.8,4083.7,0.002]
[1760285733113,0.5553,4083.8,4083.7,0.002]
[1760285733534,3.00399974,4083.8,4083.7,0.002]
[1760285733848,9.1133903,4083.8,4083.7,0.002]
[1760285734442,52.66256954,4083.8,4083.7,0.002]
[1760285735149,52.66256954,4083.8,4083.3,0.002]
[1760285735150,32.4489396,4083.4,4083.3,0.002]
[1760285735336,23.6609996,4083.4,4083.3,0.002]
[1760285735544,12.74116368,4083.4,4083.3,0.002]
[1760285735743,10.24293268,4083.4,4083.3,0.002]
[1760285736520,11.75122068,4083.4,4083.3,0.002]
[1760285737669,37.88310368,4083.4,4083.3,0.002]
[1760285737958,2.45007232,4081.6,4079.3,0.4397]
[1760285738122,2.87068805,4081.5,4080.4,2.45068204]
[1760285738470,0.4206,4081.4,4079.8,2.45110054]
[1760285738638,0.4206,4081.4,4080.8,2.4504964]
[1760285738830,0.4206,4081.4,4081.0,2.45037889]
[1760285739032,0.4206,4082.0,4080.0,0.6336]
[1760285739233,0.4206,4082.2,4080.2,0.6336]
[1760285739546,0.4206,4082.1,4080.5,0.6336]
[1760285739744,2.449964,4081.7,4079.9,0.53531005]
[1760285739946,0.4206,4081.6,4080.9,2.45043945]
[1760285740127,0.4206,4081.6,4080.0,1.0733]
[1760285740477,0.4206,4081.6,4080.0,0.4397]
[1760285740678,0.4206,4081.6,4080.2,2.45086025]
[1760285740854,0.4206,4081.6,4080.9,2.45043985]
[1760285741174,0.4206,4081.6,4080.5,2.45068006]
[1760285741375,0.4206,4081.6,4080.9,2.45041322]
[1760285741688,0.4206,4081.6,4081.1,2.57271895]
[1760285741880,0.1224,4081.8,4081.1,0.1224]
[1760285742083,0.4206,4081.7,4081.1,0.1224]
[1760285742450,2.87057412,4081.7,4081.1,0.1224]
[1760285742647,7.39393028,4081.6,4081.1,0.1224]
[1760285742886,6.941271,4081.5,4081.1,0.1224]
[1760285743088,3.544005,4081.2,4081.1,0.1224]
[1760285743399,3.48869808,4081.6,4080.6,2.45060977]
[1760285743400,2.132317,4081.1,4080.6,2.45060977]
[1760285743559,0.4206,4081.0,4080.7,0.1224]
[1760285743764,0.4206,4081.0,4080.7,2.57294359]
[1760285743981,0.1224,4081.4,4080.9,2.45042742]
[1760285744305,2.3406,4081.6,4080.7,0.1224]
[1760285744306,0.4206,4081.6,4080.7,0.1224]
[1760285744445,0.4206,4081.6,4080.4,0.6336]
[1760285744653,0.4206,4081.6,4081.2,0.1224]
[1760285744965,0.4206,4081.5,4081.2,2.57264322]
[1760285745341,0.4206,4081.5,4081.2,0.1224]
[1760285745567,0.4206,4081.4,4081.2,0.1224]
[1760285745776,0.4206,4081.3,4081.2,0.1224]
[1760285746380,0.4206,4081.3,4080.3,2.45079736]
[1760285746381,1.92,4081.2,4079.7,0.6336]
[1760285746683,0.4206,4081.3,4080.8,0.1224]
[1760285746881,2.0424,4081.4,4080.8,0.1224]
[1760285747086,0.4206,4081.2,4080.8,0.1224]
[1760285747253,0.4206,4081.1,4080.8,2.57288174]
[1760285747448,0.4206,4081.1,4080.8,0.1224]
[1760285747669,0.1224,4081.4,4080.8,0.1224]
[1760285747869,2.4500633,4081.6,4081.0,0.1224]
[1760285748114,2.0424,4081.7,4081.0,0.1224]
[1760285748115,0.1224,4081.7,4081.0,0.1224]
[1760285748502,2.44967485,4082.2,4081.4,2.45009434]
[1760285748725,0.4206,4082.1,4081.0,2.45037893]
[1760285748929,0.4206,4082.1,4081.4,2.45009151]
[1760285749087,17.43818724,4083.7,4081.4,2.45013481]
[1760285749088,0.4206,4082.4,4081.4,2.45013481]
[1760285749445,0.4206,4082.8,4081.8,2.44986604]
[1760285749737,2.44942195,4082.6,4081.8,2.44987506]
[1760285749937,2.4492659,4082.9,4081.8,2.44987506]
[1760285750093,0.1327,4083.8,4082.1,2.44966165]
[1760285750433,4.36917952,4083.0,4081.4,0.24501348]
[1760285750632,2.44923951,4082.9,4082.2,2.4496474]
[1760285750831,0.4206,4082.8,4081.5,0.2695196]
[1760285750989,0.4206,4082.8,4081.2,0.6336]
[1760285751190,2.44943889,4082.6,4081.8,2.44988062]
[1760285751424,4.654096,4082.4,4081.1,0.6336]
[1760285751626,0.4206,4082.5,4081.1,0.6336]
[1760285751828,0.4206,4082.5,4081.2,0.30859429]
[1760285752034,0.4206,4082.5,4082.4,2.39953948]
[1760285752240,0.4206,4082.5,4081.2,2.45025972]
[1760285752441,2.44901302,4083.3,4082.5,2.44942554]
[1760285752731,0.4206,4083.1,4081.6,0.6336]
[1760285752941,0.4206,4083.1,4083.0,2.44917952]
[1760285753103,0.001,4083.4,4082.1,2.4497195]
[1760285753291,0.001,4083.4,4082.2,2.16497195]
[1760285753493,0.001,4083.4,4083.2,2.44905912]
[1760285753739,0.001,4083.4,4083.3,2.44899958]
[1760285754036,0.001,4083.4,4083.3,3.08259958]
[1760285754539,0.001,4083.4,4083.3,3.53219958]
[1760285754691,0.001,4083.4,4083.3,4.13033107]
[1760285755140,0.001,4083.4,4083.3,6.05033107]
[1760285758008,0.001,4083.4,4083.3,3.53219958]
[1760285758418,0.001,4083.4,4083.3,3.65459958]
[1760285760056,0.001,4083.4,4083.3,3.53219958]
[1760285761323,0.001,4083.4,4083.3,2.44899958]
[1760285761923,0.001,4083.4,4082.6,0.981]
[1760285762123,0.001,4083.4,4082.7,0.4496]
[1760285762339,0.001,4083.4,4083.3,2.44899958]
[1760285762955,0.001,4083.4,4083.3,3.08259958]
[1760285763376,0.001,4083.4,4083.3,2.44899958]
[1760285765766,0.001,4083.4,4083.0,2.44914747]
[1760285765953,0.001,4083.4,4083.3,2.44899958]
[1760285767472,0.001,4083.4,4083.3,2.89859958]
[1760285767674,0.001,4083.4,4083.3,2.44899958]
[1760285769185,0.001,4083.4,4082.8,2.44927842]
[1760285769398,0.001,4083.4,4082.7,2.44931242]
[1760285769572,0.001,4083.4,4082.6,0.981]
[1760285769573,0.4287,4083.4,4082.8,2.44928127]
[1760285769750,0.4287,4083.4,4082.6,3.43041084]
[1760285769953,0.4277,4083.3,4082.6,3.43040065]
[1760285770166,0.4277,4083.3,4082.8,2.57164533]
[1760285770481,0.4277,4083.3,4082.8,0.1224]
[1760285770700,2.44923951,4082.9,4081.1,0.002]
[1760285770897,2.44953948,4082.4,4082.3,0.1224]
[1760285771224,2.44964355,4082.3,4081.4,2.45008849]
[1760285771404,0.4277,4082.2,4081.1,0.002]
[1760285771586,2.44983266,4082.0,4081.1,0.002]
[1760285771913,2.45025972,4081.2,4081.1,0.002]
[1760285772280,17.38507572,4081.2,4081.1,0.002]
[1760285772480,4.70978,4081.2,4081.1,0.002]
[1760285772781,7.16003972,4081.2,4081.1,0.002]
[1760285773092,2.3477,4081.2,4081.1,0.002]
[1760285773509,0.4277,4081.2,4081.1,0.002]
[1760285773711,2.8775999,4081.8,4080.7,2.45050644]
[1760285774040,0.4277,4082.1,4080.4,0.6336]
[1760285774329,2.44996777,4081.7,4080.8,2.45049408]
[1760285774484,2.45002142,4081.6,4080.8,2.45049848]
[1760285774685,0.4277,4081.5,4079.6,0.002]
[1760285774897,0.4277,4081.5,4080.6,2.45057678]
[1760285774898,2.87782451,4081.5,4080.6,2.45057678]
[1760285775188,2.45013965,4081.4,4080.3,2.45078713]
[1760285775397,1.15247883,4081.5,4080.1,2.45092032]
[1760285775601,0.4277,4081.5,4080.8,2.45044874]
[1760285775785,2.87778721,4081.5,4080.5,2.45064818]
[1760285776108,2.44955406,4082.4,4079.6,0.002]
[1760285776109,1.92,4081.9,4080.2,0.2325]
[1760285776307,0.4277,4081.9,4080.6,0.6336]
[1760285776619,0.4277,4081.9,4081.0,2.45037166]
[1760285776784,0.4277,4081.9,4080.6,0.6336]
[1760285776990,0.4277,4081.9,4080.8,0.6336]
[1760285777385,0.001,4083.4,4082.0,2.44974537]
[1760285777586,2.44941948,4082.6,4081.7,2.44990291]
[1760285777811,2.44946758,4082.6,4081.8,2.44988828]
[1760285778011,2.44948998,4082.5,4081.8,2.44987751]
[1760285778224,2.44948998,4082.5,4081.0,1.92]
[1760285778225,0.001,4083.9,4082.5,2.44947948]
[1760285778428,0.001,4083.9,4081.1,2.45031976]
[1760285778429,0.4277,4083.3,4082.1,2.44969801]
[1760285778635,0.4277,4083.3,4081.9,2.44983953]
[1760285778835,0.7154589,4083.3,4082.7,2.44935825]
[1760285779040,0.4277,4083.3,4081.9,2.44983953]
[1760285779207,0.4277,4083.3,4083.1,2.44906566]
[1760285779409,0.4277,4083.2,4083.1,2.44906566]
[1760285779840,0.4277,4083.2,4083.0,2.44917498]
[1760285780052,0.4277,4083.1,4082.6,2.44940744]
[1760285780340,2.0396,4083.8,4082.9,2.44923951]
[1760285780541,2.87647766,4083.7,4082.9,2.44918764]
[1760285780714,5.199376,4083.2,4080.7,2.45054746]
[1760285780909,2.920598,4083.1,4082.6,0.1224]
[1760285781110,0.4277,4083.0,4082.6,2.57177499]
[1760285781332,0.4277,4082.9,4082.8,2.4492995]
[1760285781540,0.1224,4083.3,4082.6,0.1224]
[1760285781837,0.1224,4083.3,4083.0,2.44913732]
[1760285782043,0.5501,4083.3,4083.0,2.44913732]
[1760285782357,0.001,4083.4,4083.3,2.44899958]
[1760285782549,0.001,4083.4,4083.0,0.1224]
[1760285782848,0.4277,4083.3,4081.9,0.6336]
[1760285783015,0.001,4083.4,4082.0,2.44977091]
[1760285783016,2.44935613,4082.8,4082.0,2.44977091]
[1760285783207,0.4277,4082.8,4082.2,2.4496577]
[1760285783411,0.4277,4082.8,4078.8,2.45364301]
[1760285783412,3.05991,4082.5,4078.8,2.45364301]
[1760285783616,2.87725415,4082.4,4080.5,0.4277]
[1760285783827,2.44970827,4082.2,4080.5,0.4277]
[1760285784046,12.125901,4082.3,4080.3,0.331699]
[1760285784227,6.872246,4081.5,4079.3,0.4277]
[1760285784545,2.45007962,4081.5,4080.4,2.4507393]
[1760285784739,2.87776714,4081.6,4079.8,0.4277]
[1760285785043,3.20193468,4083.8,4079.8,0.4277]
[1760285785247,3.20193468,4083.8,4080.3,22.22192346]
[1760285785248,4.36965913,4082.3,4080.3,22.22192346]
[1760285785444,0.4277,4082.2,4081.0,0.6336]
[1760285785760,2.45001615,4081.7,4080.4,1.92]
[1760285786051,2.4500322,4081.6,4080.8,2.45045061]
[1760285786232,2.4500322,4081.6,4080.7,0.6336]
[1760285786233,2.45018772,4081.4,4080.7,0.6336]
[1760285786409,0.4277,4081.7,4080.5,0.6336]
[1760285786410,4.37007962,4081.5,4080.5,0.6336]
[1760285786613,1.92,4081.6,4080.5,0.6336]
[1760285786822,1.92,4081.6,4079.7,0.4277]
[1760285786823,2.45031356,4081.2,4080.4,0.6336]
[1760285787025,2.45032862,4081.1,4080.4,0.6336]
[1760285787227,1.92,4081.6,4080.4,0.6336]
[1760285787424,5.39558,4081.2,4080.3,0.6336]
[1760285787644,0.66247,4081.5,4079.9,2.45099604]
[1760285787645,4.37044255,4080.9,4079.9,2.45099604]
[1760285787848,2.45038853,4081.0,4079.6,0.002]
[1760285788034,4.3703798,4081.0,4080.2,2.45080264]
[1760285788236,22.22054551,4082.7,4079.6,0.002]
[1760285788237,1.92,4081.2,4079.6,0.002]
[1760285788437,1.92,4080.7,4079.6,0.002]
[1760285788769,2.45068006,4080.5,4079.6,0.002]
[1760285788942,0.4277,4080.9,4079.6,0.002]
[1760285789128,2.3477,4080.9,4079.6,0.002]
[1760285789337,4.37020842,4081.3,4080.2,2.45083145]
[1760285789545,2.45055495,4080.8,4079.7,2.45116062]
[1760285789860,2.45037238,4081.1,4080.0,2.45098039]
[1760285790167,2.45098039,4080.0,4079.9,0.002]
[1760285790521,4.79868039,4080.0,4079.9,0.002]
[1760285790729,5.52363843,4080.0,4079.9,0.002]
[1760285790958,0.4277,4080.0,4079.9,0.002]
[1760285791741,0.4277,4080.7,4080.0,2.45093599]
[1760285791956,1.92,4080.5,4079.9,0.002]
[1760285792148,0.4277,4080.6,4079.9,0.002]
[1760285792346,1.92,4080.5,4079.9,0.002]
[1760285792548,2.45095729,4080.1,4079.9,0.002]
[1760285792855,2.0424,4080.2,4079.9,0.002]
[1760285793042,0.4277,4080.0,4079.9,0.002]
[1760285793827,2.87868039,4080.0,4079.9,0.002]
[1760285794054,1.92,4080.0,4079.9,0.002]
[1760285794238,2.3477,4080.0,4079.9,0.002]
[1760285795337,4.79868039,4080.0,4079.9,0.002]
[1760285795739,1.92,4080.0,4079.9,0.002]
[1760285795966,0.4277,4080.6,4079.9,0.002]
[1760285796264,0.4277,4080.0,4079.9,0.002]
[1760285796465,1.92,4080.6,4079.9,0.002]
[1760285796641,1.92,4080.4,4079.9,0.002]
[1760285796842,0.4277,4080.0,4079.9,0.002]
[1760285797372,0.43705843,4080.6,4079.9,0.002]
[1760285797571,0.4277,4080.0,4079.9,0.002]
[1760285799236,4.83178,4080.0,4079.9,0.002]
[1760285799437,4.009598,4080.0,4079.9,0.002]
[1760285799762,4.37055451,4080.8,4079.9,0.002]
[1760285799982,0.4277,4080.0,4079.9,0.002]
[1760285800633,0.4277,4080.7,4080.3,2.4507589]
[1760285800932,0.4277,4080.8,4080.3,2.45078684]
[1760285801132,0.4277,4080.8,4079.9,0.002]
[1760285801133,0.4277,4080.7,4080.0,2.45098039]
[1760285801342,0.4277,4080.7,4079.9,0.002]
[1760285801343,0.4277,4080.7,4080.2,2.45085744]
[1760285801963,0.4277,4081.2,4080.4,2.45068792]
[1760285802165,0.4277,4081.2,4079.9,0.002]
[1760285802166,2.45044189,4080.9,4079.9,0.002]
[1760285802566,2.45048105,4080.9,4079.9,0.002]
[1760285802970,2.45051604,4080.8,4080.0,2.45094086]
[1760285803268,0.4277,4081.0,4079.9,0.002]
[1760285803644,4.3704999,4080.8,4079.9,0.002]
[1760285803871,0.91685825,4080.8,4080.2,2.45081377]
[1760285804068,0.91685825,4080.8,4080.0,2.45098039]
[1760285804069,0.4277,4081.0,4079.9,0.002]
[1760285804383,2.45060001,4080.7,4079.9,0.002]
[1760285804542,4.37048275,4080.9,4080.0,2.45093596]
[1760285804743,2.4504999,4080.8,4080.0,2.45093596]
[1760285805067,2.0424,4080.8,4080.3,2.45079848]
[1760285805275,0.4277,4080.7,4080.2,0.1224]
[1760285805574,0.4277,4080.7,4080.1,2.45090686]
[1760285805575,0.4277,4080.6,4080.1,2.45088053]
[1760285805738,0.4277,4080.5,4079.9,0.002]
[1760285806142,2.45075702,4080.4,4079.9,0.002]
[1760285806341,2.87839007,4080.5,4079.9,0.002]
[1760285806565,0.4277,4080.5,4079.9,0.002]
[1760285806765,0.4277,4080.5,4079.9,2.4529933]
[1760285806973,2.8784056,4080.5,4079.9,0.002]
[1760285807157,2.807082,4080.6,4079.9,0.002]
[1760285807474,2.45072086,4080.5,4079.9,0.002]
[1760285807886,2.3477,4080.7,4079.9,2.45301622]
[1760285808054,1.92,4080.7,4080.1,2.4508744]
[1760285808271,0.4277,4082.0,4080.3,0.6336]
[1760285808471,0.4277,4082.0,4081.3,2.45019514]
[1760285808782,0.4277,4082.6,4081.0,0.6336]
[1760285808978,0.4277,4082.6,4081.7,2.44995205]
[1760285809192,0.001,4081.8,4081.7,2.44995205]
[1760285809597,0.001,4081.8,4081.7,3.55445205]
[1760285809991,0.001,4081.8,4081.7,5.47445205]
[1760285810166,0.001,4083.4,4083.2,2.44905956]
[1760285810365,0.001,4083.4,4083.2,3.08265956]
[1760285810598,0.001,4083.4,4083.2,4.13008984]
[1760285811686,0.001,4083.4,4083.2,6.05008984]
[1760285812962,0.001,4083.4,4083.2,5.47355956]
[1760285813168,0.001,4083.4,4083.2,1.1045]
[1760285813697,0.001,4083.4,4083.2,3.55355956]
[1760285814199,0.001,4083.4,4083.2,0.6336]
[1760285814506,0.001,4083.4,4083.2,3.55355956]
[1760285814667,0.001,4083.4,4083.2,4.15383195]
[1760285815097,0.001,4084.2,4083.2,4.15383195]
[1760285815098,0.001,4084.2,4083.6,0.6336]
[1760285815301,0.001,4084.2,4083.5,2.44884444]
[1760285815302,2.44708185,4086.5,4085.2,2.44784568]
[1760285815618,0.1216,4086.4,4085.1,0.6336]